Cogmind - Beta 12 @@@ ROGUE MODE // 2023.04.11 @ 23:42:49 Player: Jezoensis Result: Destroyed by as-12606 with Assembled Heavy Rifle Performance ------------- Evolutions (0) 0 Regions Visited (2) 400 Robots Destroyed (18) 90 Value Destroyed (365) 365 Prototype IDs (0) 0 Alien Tech Used (0) 0 Bonus (0) 0 TOTAL SCORE: 855 Bonus ------- None Cogmind --------- Core Integrity 0/250 Matter 260/300 Energy 18/100 System Corruption 5% Temperature Cool (11) Movement Treading (160) Location -10/Mines Parts ------- > --- POWER (1) -------- (None) > --- PROPULSION (2) --- Light Treads > --- UTILITY (2) ------ Improved Terrain Scanner > --- WEAPON (2) ------- Spread Laser Spread Laser > --- INVENTORY (5) ---- Huge Storage Unit High-capacity Matter Pod (138) Terrain Scan Processor Spread Laser Mining Laser Peak State ------------ > --- POWER ------------ Ion Engine > --- PROPULSION ------- Wheel Wheel > --- UTILITY ---------- Large Storage Unit Improved Terrain Scanner > --- WEAPON ----------- Spread Laser Makeshift Shrapnel Gun > --- INVENTORY -------- Light Treads Light Treads Compact Wheel Compact Wheel Improved Heat Sink Huge Storage Unit High-capacity Matter Pod High-capacity Matter Pod Terrain Scan Processor Terrain Scan Processor Shield Generator Spread Laser Spread Laser Spread Laser Mining Laser [Rating: 15] Favorites ----------- Power Ion Engine Engine Ion Engine Propulsion Wheel Treads Light Treads Wheel Wheel Utility Improved Terrain Scanner Device Improved Terrain Scanner Storage Large Storage Unit Protection Weapon Shielding Weapon Spread Laser Energy Gun Spread Laser Ballistic Gun Makeshift Shrapnel Gun Special Weapon Mining Laser Build | -11 -10 -10 ------- Run | Jun Mat Min Slots Evolved . | . . . Power . | . . . Propulsion . | . . . Utility . | . . . Weapon . | . . . Parts Attached 60 | 9 24 27 Power 4 | 1 2 1 Engine 4 | 1 2 1 Core . | . . . Reactor . | . . . Propulsion 28 | 4 9 15 Treads 10 | . 3 7 Leg . | . . . Wheel 18 | 4 6 8 Hover . | . . . Flight . | . . . Utility 16 | 2 8 6 Device 12 | 1 5 6 Storage 3 | 1 2 . Processor . | . . . Hackware . | . . . Protection 1 | . 1 . Artifact . | . . . Weapon 12 | 2 5 5 Energy Gun 7 | 1 4 2 Energy Cannon . | . . . Ballistic Gun 3 | 1 . 2 Ballistic Cannon . | . . . Launcher . | . . . Special Weapon 2 | . 1 1 Impact Weapon . | . . . Slashing Weapon . | . . . Piercing Weapon . | . . . Special Melee Weapon . | . . . Unidentified Prototypes . | . . . Parts Lost 11 | . 1 10 Power 3 | . 1 2 Propulsion 5 | . . 5 Utility 1 | . . 1 Weapon 2 | . . 2 Highest Loss Streak 7 | . 1 7 To Critical Strikes . | . . . Average Slot Usage (%) 97 | . 100 95 Engine 12 | . 14 11 Treads 3 | . 2 4 Wheel 24 | . 25 23 Device 13 | . 12 13 Storage 13 | . 14 13 Energy Gun 17 | . 19 16 Ballistic Gun 7 | . 3 10 Special Weapon 2 | . 4 . Naked Turns . | . . . Heaviest Build 32 | 11 32 32 Greatest Support 26 | 20 26 26 Greatest Overweight (x) 3 | . 1 3 Average Overweight (x) . | . . 1 Largest Inventory Capacity 15 | 8 15 15 Average Capacity 12 | 7 10 14 Most Carried 15 | 7 15 15 Average Carried 11 | 4 10 13 Final Capacity 15 | 8 15 5 Final Carried 15 | 7 15 5 Class Distribution -------------------- 88% | Mutant 11% | Scavenger-Mutant Dominant Class ---------------- Mutant | -10/Materials Mutant | -10/Mines Resources | -11 -10 -10 ----------- Run | Jun Mat Min Matter Collected 913 | 262 338 313 Remotely . | . . . Salvage Created 484 | 49 363 72 Parts 37 | 6 17 14 Haulers Intercepted . | . . . Recyclers Shooed . | . . . Parts Field Recycled . | . . . Retrieved Matter . | . . . Parts Self-Destructed . | . . . Prevented . | . . . Kills | -11 -10 -10 ------- Run | Jun Mat Min Combat Hostiles Destroyed 17 | . 6 11 Guns 17 | . 6 11 Classes Destroyed 7 | 1 3 3 Worker 2 | . 2 . Tunneler 2 | 2 . . Recycler 1 | . 1 . Swarmer 6 | . . 6 Grunt 6 | . 6 . Demolisher 1 | . . 1 Assembled 4 | . . 4 Best Kill Streak 3 | 2 3 3 Combat Bots Only 3 | . 2 3 Max Kills in Single Turn 2 | 1 1 2 Gunslinging 1 | . . 1 Exploded . | . . . Melee . | . . . Uniques/NPCs Destroyed . | . . . Combat | -11 -10 -10 -------- Run | Jun Mat Min Damage Taken 1136 | . 322 814 Core 250 | . 73 177 Absorbed by Shields . | . . . Redirected to Shielding 9 | . 9 . Core Remaining (%) 100 | 100 . . Volleys Fired 57 | 7 29 21 Largest 2 | 2 2 2 Hottest 130 | 60 130 130 Shots Fired 106 | 14 52 40 Gun 100 | 14 47 39 Cannon . | . . . Launcher . | . . . Special 6 | . 5 1 Kinetic 26 | 7 8 11 Thermal 80 | 7 44 29 Explosive . | . . . Electromagnetic . | . . . Robot Hit Streak 17 | 10 17 8 Robot Miss Streak 7 | 1 3 7 Penetration Max . | . . . Secondary Targets 3 | . 2 1 Max Gunslinging Chain 1 | . 1 1 Shots Hit Robots 80 | 11 36 33 Core Hits 62 | 3 21 38 Critical Kills . | . . . Critical Parts Destroyed . | . . . Critical Strikes 4 | . 4 . Burn 4 | . 4 . Melee Attacks . | . . . Impact . | . . . Slashing . | . . . Piercing . | . . . Sneak Attacks . | . . . Combat Hostiles . | . . . Follow-up Attacks . | . . . Damage Inflicted 946 | 108 460 378 Guns 946 | 108 460 378 Cannons . | . . . Explosions . | . . . Melee . | . . . Ramming . | . . . Kinetic 206 | 54 51 101 Thermal 740 | 54 409 277 Explosive . | . . . Electromagnetic . | . . . Impact . | . . . Slashing . | . . . Piercing . | . . . Highest Corruption 5 | . . 5 Average Corruption 5 | . . 5 Corruption Purged . | . . . Corruption Blocked . | . . . Effects 3 | . . 3 Message Errors 2 | . . 2 Heat Flow Errors 1 | . . 1 Overload Shots . | . . . Overflow Damage . | . . . Projectiles . | . . . Explosions . | . . . Melee . | . . . Knockbacks . | . . . Impact . | . . . Kinetic . | . . . Secondary . | . . . Self-Inflicted Damage . | . . . Shots . | . . . Rammed . | . . . Targets Rammed . | . . . Kicked . | . . . Crushed . | . . . Highest Temperature 191 | 40 130 191 Average Temperature 49 | 25 48 59 Received Heat Transfer 224 | . 204 20 Siege Activations . | . . . Robots Corrupted . | . . . Combat Hostiles . | . . . Parts Fried . | . . . Impact Corruptions . | . . . Robots Melted . | . . . Combat Hostiles . | . . . Parts Melted 4 | . 4 . Heat Transferred 1667 | 125 1192 350 Parts Sabotaged . | . . . Parts Stolen . | . . . Parts Stripped . | . . . Power Chain Reactions . | . . . Missiles Intercepted . | . . . Alert | -11 -10 -10 ------- Run | Jun Mat Min Peak Influence 273 | 10 211 273 Initial 82 | . 6 82 Average 136 | 3 96 193 Maximum Alert Level 1 | . 1 1 Low Security (%) 72 | 100 95 47 Level 1 27 | . 4 52 Level 2 . | . . . Level 3 . | . . . Level 4 . | . . . Level 5 . | . . . High Security . | . . . Max Security . | . . . Squads Dispatched 1 | . 1 . Investigation 1 | . 1 . Extermination . | . . . Reinforcement . | . . . Assault . | . . . Garrison . | . . . Intercept . | . . . Searches Triggered . | . . . Construction Impeded . | . . . Haulers Reinforced . | . . . Active Scanning Responses . | . . . Cargo Convoy Interrupts . | . . . Stealth | -11 -10 -10 --------- Run | Jun Mat Min Distress Signals . | . . . Communications Jammed . | . . . Distress Signals . | . . . Times Spotted 22 | . 7 15 Peak Tracking Total 3 | . 2 3 Tactical Retreats 1 | . . 1 Traps | -11 -10 -10 ------- Run | Jun Mat Min Traps Triggered . | . . . Indirectly . | . . . Trap Hack Attempts . | . . . Triggered . | . . . Disarmed . | . . . Reprogrammed . | . . . Reused . | . . . Traps Extracted . | . . . Installed . | . . . Triggered . | . . . Machines | -11 -10 -10 ---------- Run | Jun Mat Min Machines Disabled . | . . . Max in Single Turn . | . . . Machines Repaired . | . . . Machines Sabotaged . | . . . Overloaded Fab Kills . | . . . Hacking | -11 -10 -10 --------- Run | Jun Mat Min Machines Accessed 6 | . 6 . Terminals 5 | . 5 . Fabricators . | . . . Repair Stations . | . . . Recycling Units 1 | . 1 . Scanalyzers . | . . . Garrison Access . | . . . Total Hacks 25 | . 25 . Successful 12 | . 12 . Failed 12 | . 12 . Catastrophic 1 | . 1 . Database Lockouts 1 | . 1 . Manual 21 | . 21 . Terminals 24 | . 24 . Fabricators . | . . . Repair Stations . | . . . Recycling Units 1 | . 1 . Scanalyzers . | . . . Garrison Access . | . . . Terminal Hacks 7 | . 7 . Part Schematic 1 | . 1 . Robot Analysis 3 | . 3 . Terminal Index 1 | . 1 . Locate Traps 1 | . 1 . Recall Investigation 1 | . 1 . Fabricator Hacks . | . . . Repair Station Hacks . | . . . Recycling Unit Hacks . | . . . Scanalyzer . | . . . Garrison Access Hacks . | . . . Unauthorized Hacks 5 | . 5 . Terminals 4 | . 4 . Track 1 | . 1 . Botnet 2 | . 2 . Operators 1 | . 1 . Fabricators . | . . . Repair Stations . | . . . Recycling Units 1 | . 1 . Tunnel 1 | . 1 . Scanalyzers . | . . . Garrison Access . | . . . Data Cores Recovered . | . . . Used . | . . . Hacking Detections 5 | . 5 . Full Trace Events 1 | . 1 . Feedback Events . | . . . Feedback Blocked . | . . . Robot Schematics Acquired . | . . . Robots Built . | . . . Authchips . | . . . Time . | . . . Total Robot Build Rating . | . . . Part Schematics Acquired 1 | . 1 . Parts Built . | . . . Authchips . | . . . Time . | . . . Total Part Build Rating . | . . . Parts Repaired . | . . . Time . | . . . Parts Recycled . | . . . Recycled Matter . | . . . Retrieved Matter . | . . . Retrieved Components . | . . . Parts Scanalyzed . | . . . Part Schematics Acquired . | . . . Parts Damaged . | . . . Bothacking | -11 -10 -10 ------------ Run | Jun Mat Min Used RIF Installer . | . . . Robots Hacked . | . . . Non-combat . | . . . Combat . | . . . Robot Hacks Applied . | . . . Relay Couplers Released . | . . . Fabnet Peak Effective % . | . . . Robots Rewired . | . . . Allies Hacked . | . . . Hacks Repelled . | . . . Allies | -11 -10 -10 -------- Run | Jun Mat Min Total Allies . | . . . Largest Group . | . . . Highest-Rated Group . | . . . Highest-Rated Ally . | . . . Total Orders . | . . . Ally Attacks . | . . . Total Damage . | . . . Kills . | . . . Allies Corrupted . | . . . Allies Melted . | . . . Intel | -11 -10 -10 ------- Run | Jun Mat Min Robot Analysis Total 3 | . 3 . Derelict Logs Recovered 1 | . . 1 Drone Launches . | . . . Drone Recoveries . | . . . Exploration | -11 -10 -10 ------------- Run | Jun Mat Min Turns Passed 923 | 76 399 448 Spaces Moved 700 | 52 302 346 Core 19 | 19 . . Treads 4 | . . 4 Legs . | . . . Wheels 677 | 33 302 342 Hover . | . . . Flight . | . . . Fastest Speed 50 | 50 80 90 Average Speed 90 | 69 84 98 Slowest Speed 160 | 80 105 160 Overloaded Moves . | . . . Propulsion Burnouts . | . . . Robots Hopped . | . . . Cave-ins Triggered . | . . . Exploration Rate (%) 43 | 5 57 69 Regions Visited 2 Branch Regions 1 Pre-discovered Areas 1 | . 1 . Known Exits Taken . | . . . Unknown Exits Taken 2 | 1 1 . Scrap Searched 2 | . . 2 Spaces Dug 3 | . 2 1 Terrain Destroyed 6 | . 5 1 Melee . | . . . Projectile 6 | . 5 1 AOE . | . . . Terrain Rammed . | . . . Walls Destroyed . | . . . Machines Disabled . | . . . Actions | -11 -10 -10 --------- Run | Jun Mat Min Total 865 | 76 384 405 Wait 10 | . 3 7 Move 698 | 51 301 346 Hop . | . . . Pick Up 21 | 8 13 . Fast Attach 10 | 5 3 2 Attach 13 | 3 3 7 Detach 5 | 1 3 1 Swap 37 | 1 18 18 Drop 14 | . 11 3 Fire 57 | 7 29 21 Melee . | . . . Ram . | . . . Kick . | . . . Crush . | . . . Escape Stasis . | . . . Rewire . | . . . Trap . | . . . Miscellaneous . | . . . Route ------- -11/Junkyard -10/Materials -10/Mines History --------- Turn | Location | Event 19 | -11/Junkyard | Discovered new exit (range 16) 77 | -11/Junkyard | Entered Materials 263 | -10/Materials | Central database locked down 328 | -10/Materials | Build established: Mutant 362 | -10/Materials | Discovered new exit (range 6) 476 | -10/Materials | Entered Mines 477 | -10/Mines | Met a Derelict bent on vengeance 508 | -10/Mines | A weapon hastily lodged in a ceiling crevice suddenly fell to the ground 540 | -10/Mines | Assembled infested the area 712 | -10/Mines | Learned 4 Materials zone layouts 735 | -10/Mines | Core integrity fell below 50% 869 | -10/Mines | Core integrity fell below 20% 896 | -10/Mines | Found a hidden stash of uninstalled traps 914 | -10/Mines | Lost 7 parts (1p4n2w) 924 | -10/Mines | Destroyed by as-12606 with Assembled Heavy Rifle Last Messages --------------- 00804_ Acquired 9 matter. 00824_ Acquired 59 matter. 00828_ GQLYJJ,YHDXJ G# 00914_ Com. Wheel destroyed. 00914_ as-20786 destroyed. 00917_ Dropped Lrg. Storage Unit. Map ----- +----------------------------------------------------+ | | | | | | | | | | | | | ???????????#???????????????????????????????? | | ???????????????????????????????????????????? | | ?????????????????????#?????????????????????? | | ?????#???????????#????????????#????????????? | | ???????????#???????????????????????????????? | | ???????????????#???????????????????????????? | | ????????????????????????#??????????????????? | | ??#?????????####???????????????????????????? | | ???????????## ##???????????????????????????? | | ??????????## ###########?????????????????? | | ?????????## # # ##????????????????? | | ???????#?# & ##???????????????? | | ?????????# & & # ##??????????????? | | ?????##### && ### #??????????????? | | ????## # ##?#????????????? | | ????# # !!! #???????????????? | | ????# # ### ! ###?#???????#????? | | ????# ### ##???###?###??????? | | ????## ## ##### ###%#??????? | | ??#??# # @ a # # ###????? | | ?????# ### ##? # = #????? | | ????## ### #### #????? | | ????# ##???? | | ???## ## # #### #???? | | ????# ######?## * #???? | | ????# # # #??## ##???? | | ????# ### # # ## ??## #????? | | ???## ## # # # #?###??#"#????? | | ????# ?#### #??????# #????# | | ??#?## # # ?# ##?????# #????# | | ?????# ## ####??## # #?????# ###### | | ?????# #?###?????# ## #?????# | | ?#???# #????????# # ##?????#### ### | | ?#?### #????????# #####?????# #?# | | ??## ##?????# # ### ####### ### | | ??# #?????# # # # # ## =[%= | | ??# #?????#?##?####### ########## | | ??# ##?????????????## ##????????? | | ??# ##?#????????????# ####?????????? | | ??# ###????#??????#???# ##????????????? | | ??# #######???????????## #?????????????? | | ??# ##### #??????## ##????????#????? | | #?# #?#?????# #???????????###? | | ??#### ## ###########???# #??????????## ## | +----------------------------------------------------+ Best States ------------- Heat Dissipation 39 Energy Generation 10 Energy Capacity 250 Matter Stores 300 Matter Capacity 300 Sight Range 16 Terrain Scan Range 16 Terrain Scan Density 10 Weapon Shielding 33 Evasion (%) 50 Recoil Reduction 1 Item Schematics ----------------- Hcp. Storage Unit | -10/Materials | Hacked Robot Schematics ------------------ None Fabricated ------------ Nothing Alien Tech Used ----------------- None Achievements -------------- None Challenges ------------ None Game ------ Seed StructuralHardcellTreads Manual? 0 Play Time 00:14:02 Cumulative 929.6 hours Start 2023.04.11 @ 23:30:20 End 2023.04.11 @ 23:42:49 Sessions 1 Manual Loads 0 Difficulty Rogue Special Mode None Game No. 484 Rogue 357 Adventurer 125 Explorer 2 Win Type - Total 108 Types 85/8/7/2/3/0/0/2/1 Lore% 85 Gallery% 91 Achievement% 82 Wizard Run 0 Options --------- ASCII 0 Keyboard 1 Movement Numpad Keybinds 0 Fullscreen 1 Font 36/TerminusFine Map View 76x50 Tactical HUD 1 Map Filters NONE Filters NONE Steam 1 RUN: a4324b6b-9ffe-4a86-b48a-0621b222af35